bitfinex-derivatives/quotes_ETHF0:USTF0_20250224
["timestamp","ask_amount","ask_price","bid_price","bid_amount"]
[1740438012077,3.2078,2512.1,2511.7,3.2078]
[1740438012283,0.00596552,2512.0,2511.7,8.49807539]
[1740438012482,0.00596552,2512.0,2511.7,5.29027539]
[1740438012785,3.2078,2513.2,2511.7,14.49807539]
[1740438012985,3.2078,2512.9,2512.3,3.2078]
[1740438013187,11.77700782,2513.7,2512.8,3.2078]
[1740438013384,8.56920782,2513.7,2512.8,0.79597]
[1740438013585,0.46663108,2514.8,2512.9,5.20698054]
[1740438013586,8.56920782,2513.3,2512.9,5.20698054]
[1740438013891,8.56920782,2512.8,2512.2,5.20698054]
[1740438014079,5.29386172,2513.0,2512.2,5.20698054]
[1740438014280,9.36541782,2512.1,2512.0,1.12056108]
[1740438014594,9.36541782,2512.1,2511.9,5.20698054]
[1740438014595,8.56920782,2511.6,2509.8,3.2078]
[1740438014793,3.2078,2512.3,2509.8,3.2078]
[1740438014794,8.56920782,2511.0,2509.8,3.2078]
[1740438015089,0.00596552,2511.1,2510.2,5.08786025]
[1740438015289,8.56920782,2510.6,2510.1,0.00596552]
[1740438015489,0.7966,2510.9,2510.1,0.00596552]
[1740438015685,0.00596552,2511.1,2510.1,0.00596552]
[1740438015686,8.56920782,2510.6,2510.1,0.00596552]
[1740438016082,8.56920782,2510.4,2510.1,0.00596552]
[1740438016484,14.65987954,2510.2,2510.1,0.00596552]
[1740438016690,13.86306954,2510.2,2510.1,0.00596552]
[1740438016880,19.85710402,2510.2,2509.4,40.8]
[1740438017085,0.79689,2510.0,2509.4,40.8]
[1740438017387,1.99171,2510.6,2509.4,40.8]
[1740438017388,14.65413402,2509.5,2509.4,40.8]
[1740438017589,5.29386172,2509.5,2507.8,4.8259]
[1740438017794,3.2078,2508.7,2507.5,3.2078]
[1740438017990,0.79751,2508.0,2507.9,5.23289848]
[1740438018190,5.29386172,2507.6,2506.7,3.2078]
[1740438018393,3.2078,2508.4,2507.7,0.00597872]
[1740438018587,3.2078,2508.0,2506.8,5.15011448]
[1740438018893,6.09188172,2506.4,2506.1,15.3240519]
[1740438019091,0.79802,2506.4,2506.3,6.9653798]
[1740438019288,0.79808,2506.2,2506.1,0.3892219]
[1740438019485,1.99545,2505.9,2503.6,3.2078]
[1740438019694,3.2078,2505.4,2504.3,3.9904]
[1740438019889,3.2078,2505.4,2503.9,40.8]
[1740438020089,3.2078,2505.5,2504.5,0.00597872]
[1740438020388,0.00597872,2504.9,2504.5,0.00597872]
[1740438020690,4.45374899,2507.3,2505.4,3.9904]
[1740438020691,3.2078,2506.5,2505.4,3.9904]
[1740438020896,3.2078,2506.7,2505.6,3.9904]
[1740438021095,22.096,2507.2,2506.1,4.02545978]
[1740438021390,4.00588,2506.2,2506.1,0.03505978]
[1740438021788,6.79808,2506.2,2506.1,0.03505978]
[1740438022290,3.2078,2505.7,2503.5,3.2078]
[1740438022494,3.2078,2504.8,2503.5,3.2078]
[1740438022689,3.2078,2504.8,2503.8,5.17026175]
[1740438022894,3.2078,2503.9,2503.6,40.8]
[1740438023095,3.2078,2503.9,2502.9,15.38090479]
[1740438023295,3.2078,2503.9,2502.4,18.38886228]
[1740438023296,0.79926,2502.5,2502.4,18.38886228]
[1740438023592,3.2078,2502.2,2499.7,40.8]
[1740438023795,3.2078,2501.1,2499.7,7.9848]
[1740438023986,0.80019,2499.6,2499.4,93.76053693]
[1740438024192,3.2078,2500.8,2499.4,18.38835701]
[1740438024390,3.2078,2499.1,2498.7,27.01308459]
[1740438024596,3.2078,2497.8,2494.8,40.64810482]
[1740438024794,0.80169,2494.9,2494.8,37.44030482]
[1740438024995,0.80169,2494.9,2492.6,0.80243]
[1740438024996,9.2078,2494.9,2492.8,3.2078]
[1740438025189,9.2078,2494.9,2491.2,43.64372613]
[1740438025190,9.90809485,2493.7,2492.1,3.2078]
[1740438025394,9.90809485,2493.7,2491.2,43.64372613]
[1740438025395,6.0,2493.7,2491.9,3.2078]
[1740438025597,3.2078,2493.1,2491.2,43.64372613]
[1740438025793,3.2078,2492.5,2491.2,43.64372613]
[1740438025992,3.2078,2490.4,2488.3,3.2078]
[1740438026194,22.145,2490.3,2487.3,3.2078]
[1740438026399,22.145,2490.3,2485.1,3.2078]
[1740438026400,3.2078,2487.6,2485.1,3.2078]
[1740438026595,3.2078,2486.0,2485.3,50.11449549]
[1740438026895,3.2078,2485.9,2482.0,2.01989875]
[1740438027103,3.2078,2481.9,2479.0,0.24239143]
[1740438027299,3.2078,2478.8,2477.1,3.2078]
[1740438027595,2.71107837,2478.6,2476.5,3.2078]
[1740438027789,3.2078,2478.5,2477.4,41.63214701]
[1740438027992,3.2078,2478.2,2477.7,0.00605339]
[1740438028200,3.2078,2477.8,2476.5,2.6245]
[1740438028402,3.2078,2474.2,2472.4,0.25070454]
[1740438028693,3.2078,2474.3,2472.4,0.25070454]
[1740438028993,6.30835744,2478.4,2472.0,0.00537281]
[1740438028994,3.38581653,2474.1,2473.1,35.79902247]
[1740438029198,3.38581653,2474.2,2472.9,3.2078]
[1740438029390,3.2078,2473.2,2470.2,3.2078]
[1740438029591,285.673,2476.7,2471.3,40.8]
[1740438029592,3.2078,2472.6,2471.3,40.8]
[1740438029796,1.89499494,2472.5,2471.9,41.63214701]
[1740438029999,0.00605339,2473.8,2472.2,3.2078]
[1740438030300,3.2078,2476.2,2474.5,3.2078]
[1740438030599,3.2078,2480.5,2477.4,3.2078]
[1740438030901,0.04,2484.4,2481.5,3.2078]
[1740438031098,22.219,2487.5,2484.3,3.2078]
[1740438031296,0.24399962,2487.5,2485.7,2.39315951]
[1740438031497,0.80446,2486.4,2485.2,3.2078]
[1740438031799,3.2078,2489.1,2486.2,3.2078]
[1740438031996,3.2078,2490.6,2487.1,3.2078]
[1740438032198,3.2078,2491.4,2489.0,41.63214701]
[1740438032396,0.08027937,2491.3,2489.2,41.63214701]
[1740438032593,6.08027937,2491.3,2489.4,3.2078]
[1740438032799,3.2078,2489.5,2487.9,3.2078]
[1740438032998,3.2078,2490.5,2488.2,44.83994701]
[1740438033295,0.52760098,2490.7,2488.2,44.83994701]
[1740438033296,0.52760098,2489.9,2488.5,3.2078]
[1740438033497,0.52760098,2489.9,2488.0,3.2078]
[1740438033694,0.80463,2485.8,2478.5,40.3489]
[1740438033892,3.2078,2482.7,2480.6,3.2078]
[1740438034097,3.2078,2480.7,2478.8,3.2078]
[1740438034294,3.2078,2479.9,2478.1,3.2078]
[1740438034494,3.2078,2479.6,2478.3,41.94523088]
[1740438034694,3.2078,2479.5,2478.1,42.95403088]
[1740438034897,3.2078,2479.3,2478.8,0.006049]
[1740438035095,0.80706,2478.4,2477.2,22.263]
[1740438035298,3.2078,2477.6,2476.9,0.06036908]
[1740438035795,3.2078,2479.0,2476.9,58.16970216]
[1740438035994,0.059194,2477.3,2477.2,0.80742]
[1740438036190,0.52760098,2479.8,2477.0,5.58960292]
[1740438036391,3.2078,2480.0,2478.7,3.2078]
[1740438036596,3.2078,2482.1,2479.9,40.8]
[1740438036791,3.2078,2482.9,2480.3,3.2078]
[1740438036990,3.2078,2483.7,2482.4,3.2078]
[1740438037193,8.76018641,2485.2,2483.6,3.2078]
[1740438037392,0.24984082,2489.3,2483.6,3.2078]
[1740438037393,3.2078,2487.8,2485.0,3.2078]
[1740438037597,3.2078,2487.9,2485.6,3.2078]
[1740438037795,0.00603525,2486.6,2485.9,40.8]
[1740438037996,6.21190192,2488.0,2486.2,4.01831525]
[1740438038198,3.2078,2487.3,2486.0,4.75080811]
[1740438038399,3.2078,2486.1,2485.5,3.2078]
[1740438038708,3.2078,2486.8,2485.7,4.0208]
[1740438038895,3.2078,2486.5,2486.1,4.0208]
[1740438039100,3.2078,2486.8,2486.1,4.0208]
[1740438039298,9.41970192,2488.0,2486.8,4.0208]
[1740438039504,6.21190192,2488.0,2487.1,4.0208]
[1740438039794,3.2078,2487.5,2486.3,5.24155574]
[1740438039994,3.2078,2488.8,2488.1,4.0208]
[1740438040195,0.8036,2489.0,2488.3,4.0208]
[1740438040400,22.305,2490.6,2488.1,4.0208]
[1740438040401,3.2078,2488.4,2488.1,4.0208]
[1740438040593,4.01143,2488.9,2488.2,4.0208]
[1740438040810,3.2078,2488.5,2487.9,4.0208]
[1740438040999,3.2078,2488.0,2487.1,22.13081505]
[1740438041197,3.2078,2488.9,2486.5,3.2078]
[1740438041402,3.2078,2488.2,2486.3,22.88217608]
[1740438041603,4.01133,2489.2,2486.6,3.2078]
[1740438041896,3.2078,2488.9,2487.0,0.80423]
[1740438042095,4.0113,2489.4,2486.9,3.2078]
[1740438042300,3.2078,2489.3,2487.9,3.2078]
[1740438042498,3.2078,2489.3,2488.5,0.80375]
[1740438042701,3.73491076,2491.0,2488.0,27.53675276]
[1740438042905,0.00602289,2489.1,2488.0,44.43281505]
[1740438043106,0.00602289,2489.1,2488.2,3.2078]
[1740438043403,3.2078,2488.7,2488.3,0.00602289]
[1740438043603,0.00602289,2489.1,2488.0,12.38079499]
[1740438044106,3.2078,2488.1,2488.0,22.13081505]
[1740438044307,3.2078,2488.5,2487.8,22.295]
[1740438044607,3.2078,2488.3,2487.8,22.295]
[1740438044907,3.18795314,2487.9,2486.8,22.295]
[1740438045112,3.2078,2486.9,2486.8,22.295]
[1740438045407,3.2078,2487.1,2486.1,3.2078]
[1740438045606,3.2078,2486.2,2482.7,11.4226]
[1740438045905,3.2078,2484.4,2482.6,3.2078]
[1740438046103,22.295,2485.8,2483.5,0.01984686]
[1740438046407,0.80553,2483.1,2482.0,5.5978]
[1740438046602,3.2078,2482.9,2482.0,5.5978]
[1740438046905,3.2078,2482.5,2481.1,25.5138]
[1740438047104,3.75699642,2482.2,2481.2,3.2078]
[1740438047304,3.2078,2482.1,2481.2,22.13081505]
[1740438047504,5.09374349,2482.1,2480.4,3.2078]
[1740438047705,1.88594349,2482.1,2480.6,3.2078]
[1740438047903,0.55394266,2481.2,2481.1,0.80615]
[1740438048109,0.55394266,2481.2,2480.2,3.2078]
[1740438048309,0.55394266,2481.2,2481.1,0.80615]
[1740438048812,2.66e-06,2481.2,2481.1,0.80615]
[1740438049007,1.88878902,2481.2,2481.1,0.80615]
[1740438049206,5.09658902,2481.2,2480.4,3.2078]
[1740438049406,0.81505902,2481.2,2481.1,0.80615]
[1740438049609,3.2078,2482.8,2480.7,3.2078]
[1740438049810,3.2078,2483.0,2481.1,3.2078]
[1740438050009,3.2078,2483.6,2481.5,0.806]
[1740438050310,3.2078,2483.0,2481.6,68.25818966]
[1740438050612,0.24798874,2486.8,2481.6,68.25818966]
[1740438050613,1.76236632,2484.4,2482.7,3.2078]
[1740438050908,1.76236632,2484.4,2483.7,0.80531]
[1740438051110,1.76236632,2486.0,2484.3,3.2078]
[1740438051310,3.2078,2485.4,2484.4,0.80506]
[1740438051513,3.2078,2485.4,2484.2,3.2078]
[1740438051711,3.2078,2486.5,2484.7,3.2078]
[1740438052011,3.2078,2487.0,2485.0,3.2078]
[1740438052311,3.2078,2487.0,2485.4,0.06501616]
[1740438052512,4.97016632,2487.8,2485.6,3.2078]
[1740438052712,4.97016632,2487.8,2486.2,3.2078]
[1740438052909,1.76236632,2487.8,2486.2,3.2078]
[1740438053110,1.76236632,2487.7,2487.0,0.06501616]
[1740438053306,1.76236632,2487.7,2486.6,3.2078]
[1740438053512,1.76236632,2487.7,2486.7,0.80433]
[1740438053811,3.2078,2488.8,2486.9,3.2078]
[1740438054009,3.2078,2489.0,2487.1,3.2078]
[1740438054212,3.2078,2489.5,2487.6,3.2078]
[1740438054407,22.317,2491.0,2487.6,3.2078]
[1740438054408,3.2078,2489.8,2487.6,3.2078]
[1740438054608,3.2078,2489.1,2487.9,3.2078]
[1740438054817,3.2078,2490.2,2488.7,3.2078]
[1740438055014,0.803,2490.9,2489.8,3.2078]
[1740438055213,3.2078,2491.6,2489.6,3.2078]
[1740438055413,3.2078,2491.1,2489.9,3.2078]
[1740438055612,3.2078,2491.5,2489.6,22.306]
[1740438055820,3.2078,2491.8,2490.3,3.2078]
[1740438056015,3.2078,2492.2,2490.5,3.2078]
[1740438056215,3.2078,2491.8,2490.8,3.2078]
[1740438056417,3.2078,2491.8,2491.1,3.2078]
[1740438056619,3.2078,2493.1,2491.4,3.2078]
[1740438056912,3.2078,2493.0,2491.6,3.2078]
[1740438057213,3.21382313,2492.5,2492.0,0.00602313]
[1740438057413,0.00602313,2492.5,2492.0,0.00602313]
[1740438058017,0.00602313,2492.5,2491.6,3.2078]
[1740438058210,0.00602313,2492.5,2491.9,3.2078]
[1740438058414,0.00602313,2492.5,2492.1,3.2078]
[1740438058619,0.00602313,2492.5,2491.8,0.80267]
[1740438058821,0.00602313,2492.5,2492.2,3.2078]
[1740438059019,3.2078,2493.8,2491.9,5.29336573]
[1740438059216,0.80217,2493.5,2492.1,0.00602313]
[1740438059413,4.00997,2493.5,2492.1,0.00602313]
[1740438059615,3.2078,2494.0,2492.1,0.00602313]
[1740438059816,3.2078,2494.5,2492.4,3.2078]
[1740438060021,2.00438,2494.8,2492.7,3.2078]
[1740438060313,0.00602313,2493.7,2492.9,3.2078]
[1740438060709,0.79248894,2494.4,2493.0,5.10885367]
[1740438061015,3.2078,2494.2,2493.1,23.09227]
[1740438061216,3.2078,2494.5,2493.1,27.39885367]
[1740438061420,0.74794796,2494.4,2493.2,3.2078]
[1740438061917,0.00602313,2494.0,2493.6,0.00602313]
[1740438062116,1.3967822,2494.8,2493.7,0.80206]
[1740438062315,0.4961106,2494.3,2493.8,3.2078]
[1740438062511,4.00952,2494.9,2494.0,3.2078]
[1740438062820,2.00373,2495.6,2494.1,5.13338676]
[1740438063014,3.8028422,2495.8,2494.1,5.13338676]
[1740438063218,0.80768313,2495.1,2494.1,19.52772727]
[1740438063412,0.80768313,2495.1,2493.8,3.2078]
[1740438063616,0.80768313,2495.1,2493.1,21.34621393]
[1740438063617,0.00602313,2495.1,2494.1,0.80194]
[1740438063823,0.77720388,2495.7,2494.7,3.2078]
[1740438064018,0.80158,2495.3,2495.0,3.2078]
[1740438064220,3.2078,2495.8,2494.7,32.65491738]
[1740438064412,3.2078,2495.7,2494.7,32.65491738]
[1740438064616,3.2078,2495.7,2494.7,22.276]
[1740438064823,2.00308,2496.4,2494.7,22.276]
[1740438065020,0.0060107,2495.4,2495.0,0.0060107]
[1740438065216,2.00287,2496.7,2495.0,0.0060107]
[1740438065418,0.80123,2496.4,2495.5,0.80149]
[1740438065616,3.2078,2496.4,2495.1,3.2078]
[1740438065924,2.00229,2497.4,2494.7,15.38878478]
[1740438065925,3.2078,2496.7,2495.6,8.39298084]
[1740438066225,3.2078,2497.0,2495.9,3.2078]
[1740438066413,0.5950422,2498.0,2496.5,3.2078]
[1740438066615,3.2078,2497.6,2496.6,63.86214]
[1740438066819,0.0060107,2497.5,2497.0,0.0060107]
[1740438067016,0.0060107,2497.5,2497.2,0.80096]
[1740438067218,3.2078,2497.9,2497.1,0.80098]
[1740438067419,5.20862,2499.2,2497.2,40.8]
[1740438067620,3.2078,2498.8,2497.1,5.19817933]
[1740438067820,0.80046,2498.8,2497.9,0.80071]
[1740438068020,3.2078,2498.7,2498.0,22.245]
[1740438068222,0.80043,2498.9,2498.0,28.25005278]
[1740438068524,0.0060107,2498.6,2498.1,0.0060107]
[1740438068720,0.80044,2498.8,2498.1,0.0060107]
[1740438068915,0.80029,2499.3,2498.4,0.80056]
[1740438069121,3.2078,2499.6,2498.1,6.37067738]
[1740438069122,3.2078,2499.6,2498.1,0.0060107]
[1740438069321,2.00025,2499.9,2498.2,5.08491175]
[1740438069622,3.2078,2499.1,2498.1,6.37067738]
[1740438069820,0.0060107,2499.3,2498.3,5.24098979]
[1740438070020,0.0060107,2499.3,2498.7,3.2078]
[1740438070221,0.80014,2499.8,2498.9,0.8004]
[1740438070416,0.80004,2500.1,2499.2,0.8003]
[1740438070622,1.99962,2500.7,2499.3,22.245]
[1740438070824,0.79995,2500.4,2499.3,27.38136265]
[1740438071019,3.94809332,2500.9,2499.3,27.38136265]
[1740438071020,0.79988,2500.6,2499.3,25.4528]
[1740438071222,3.94809332,2500.9,2499.6,3.2078]
[1740438071419,0.0060107,2500.2,2500.1,0.80003]
[1740438071727,0.79975,2501.0,2500.1,0.80003]
[1740438071728,3.39770608,2501.2,2500.6,0.79984]
[1740438071926,6.39190036,2501.5,2501.0,0.79974]
[1740438072123,7.46844436,2502.3,2500.9,3.2078]
[1740438072423,7.46844436,2502.3,2501.1,5.25468473]
[1740438072626,7.46844436,2502.3,2501.2,3.2078]
[1740438072927,0.0903753,2502.3,2501.7,0.79949]
[1740438073127,10.23884023,2502.6,2502.1,3.2078]
[1740438073428,14.68962294,2503.4,2502.4,3.2078]
[1740438073731,14.68962294,2503.4,2502.2,68.27621139]
[1740438073732,3.2078,2504.6,2502.3,3.2078]
[1740438073925,3.2078,2505.2,2502.6,3.2078]
[1740438074125,3.2078,2504.2,2503.4,3.2078]
[1740438074427,3.2078,2504.0,2503.2,0.00599856]
[1740438074721,1.99603,2505.2,2503.2,0.00599856]
[1740438074722,3.2078,2505.1,2503.6,3.2078]
[1740438075028,3.2078,2505.0,2504.6,3.2078]
[1740438075219,3.2078,2506.1,2504.9,3.2078]
[1740438075420,0.79807,2506.3,2504.9,3.2078]
[1740438075724,0.79807,2506.3,2504.7,27.30034372]
[1740438075725,0.79813,2506.1,2505.3,0.00598647]
[1740438075926,8.16693001,2506.8,2505.3,0.00598647]
[1740438076123,3.2078,2506.4,2505.4,5.13020036]
[1740438076329,3.2078,2507.1,2505.4,5.13020036]
[1740438076526,3.2078,2506.6,2505.7,3.2078]
[1740438076727,0.79756,2507.9,2505.9,3.2078]
[1740438076927,1.99318,2508.8,2506.4,3.2078]
[1740438077128,3.2078,2507.9,2506.7,3.2078]
[1740438077427,0.79676,2510.4,2507.8,3.2078]
[1740438077619,0.79676,2510.4,2506.8,9.63392446]
[1740438077620,3.2078,2510.1,2509.4,3.2078]
[1740438077827,0.5950422,2511.3,2509.6,0.79698]
[1740438078025,3.2078,2511.1,2509.7,26.18974]
[1740438078228,13.22320799,2511.2,2510.5,3.2078]
[1740438078420,13.22320799,2511.2,2510.7,3.2078]
[1740438078625,3.2078,2511.1,2510.0,3.2078]
[1740438078831,3.2078,2511.7,2511.0,3.2078]
[1740438079134,3.2078,2512.2,2511.6,3.2078]
[1740438079326,3.2078,2512.2,2511.6,22.185]
[1740438079527,3.2078,2512.1,2510.9,5.21319062]
[1740438079727,3.2078,2511.0,2509.5,3.2078]
[1740438079927,3.2078,2509.6,2508.2,22.154]
[1740438080124,39.7924,2513.3,2506.8,3.2078]
[1740438080125,3.2078,2508.4,2506.8,3.2078]
[1740438080431,3.2078,2506.9,2505.2,22.154]
[1740438080629,3.2078,2505.3,2504.8,0.3992]
[1740438080933,3.2078,2504.9,2504.5,0.79861]
[1740438081226,1.99467,2506.9,2504.9,5.28404308]
[1740438081433,3.2078,2505.0,2504.8,5.29002931]
[1740438081631,0.79815,2506.0,2504.8,6.00598623]
[1740438081826,7.64467125,2506.6,2505.0,5.11532108]
[1740438082135,3.2078,2505.1,2504.8,0.00598623]
[1740438082330,3.2078,2505.4,2504.8,0.00598623]
[1740438082532,3.2078,2506.9,2505.3,3.2078]
[1740438082730,3.2078,2508.7,2505.9,3.2078]
[1740438083034,3.2078,2510.7,2508.4,3.2078]
[1740438083329,0.5950422,2511.1,2510.4,0.79672]
[1740438083525,0.79632,2511.8,2510.8,3.2078]
[1740438083728,0.79627,2511.9,2510.7,3.2078]
[1740438083924,10.85247125,2512.5,2511.4,3.2078]
[1740438084233,4.00382,2512.7,2512.1,3.2078]
[1740438084526,3.2078,2512.4,2512.0,3.2078]
[1740438084728,0.79643,2511.4,2511.3,5.231406]
[1740438084933,3.2078,2511.5,2510.9,3.2078]
[1740438085138,10.85247125,2511.4,2510.3,25.3548]
[1740438085324,0.79652,2511.1,2511.0,40.8]
[1740438085530,3.2078,2511.3,2511.0,40.8]
[1740438085531,0.79646,2511.3,2511.0,40.8]
[1740438085729,0.7964,2511.5,2511.1,5.29164746]
[1740438086028,14.06027125,2511.1,2510.4,3.2078]
[1740438086333,14.06027125,2511.1,2509.4,3.2078]
[1740438086334,10.85247125,2510.5,2509.4,3.2078]
[1740438086528,0.79702,2509.6,2509.5,40.8]
[1740438086741,14.06027125,2509.3,2507.7,3.2078]
[1740438087031,10.85247125,2508.6,2507.8,5.13214577]
[1740438087238,0.79754,2507.9,2507.8,5.13214577]
[1740438087533,4.00531,2508.0,2507.9,0.00597383]
[1740438087734,3.2078,2508.5,2507.9,0.00597383]
[1740438087940,22.128,2511.6,2507.9,0.00597383]
[1740438087941,3.2078,2509.1,2507.9,45.9494209]
[1740438088133,0.0059325,2508.2,2507.9,45.9494209]
[1740438088434,3.2078,2509.3,2508.0,3.2078]
[1740438088634,3.2078,2510.5,2508.6,3.2078]
[1740438088838,0.79659,2510.9,2508.9,3.2078]
[1740438089137,9.84597,2512.9,2509.5,3.2078]
[1740438089138,3.2078,2511.6,2509.5,3.2078]
[1740438089434,3.2078,2511.6,2509.8,3.2078]
[1740438089639,3.2078,2511.6,2510.3,0.00597383]
[1740438089835,3.2078,2512.5,2510.3,3.2078]
[1740438090141,10.85247125,2512.3,2510.6,3.2078]
[1740438090437,20.47587125,2512.5,2510.9,3.2078]
[1740438090740,20.47587125,2512.5,2511.7,3.2078]
[1740438090941,3.2078,2512.5,2511.8,3.2078]
[1740438091237,0.00597383,2512.0,2511.8,8.50219379]
[1740438091542,0.00597383,2512.0,2511.8,5.29439379]
[1740438091836,3.2078,2512.9,2511.9,3.2078]
[1740438092141,10.85247125,2512.7,2511.9,8.31450166]
[1740438092437,6.4156,2512.9,2512.0,44.0078]
[1740438092637,3.2078,2513.0,2512.0,44.0078]
[1740438092833,10.85247125,2512.7,2512.1,5.16855733]
[1740438093029,10.85247125,2512.8,2512.1,5.16855733]
[1740438093235,10.85247125,2512.4,2511.7,3.2078]
[1740438093434,3.2078,2512.3,2511.4,0.00597383]
[1740438093631,10.85247125,2512.2,2512.1,1e-08]
[1740438093841,10.85247125,2512.2,2511.4,0.00597383]
[1740438093842,14.06624508,2511.5,2510.3,3.2078]
[1740438094042,10.85247125,2511.2,2510.3,3.2078]
[1740438094230,10.85247125,2510.4,2509.8,22.108]
[1740438094741,10.85247125,2510.1,2509.9,5.13691926]
[1740438094933,3.2078,2510.1,2509.1,3.2078]
[1740438095136,10.85247125,2509.8,2509.4,5.10686603]
[1740438095434,4.45484267,2510.1,2509.3,0.00597383]
[1740438095631,10.85247125,2509.6,2509.5,5.10686603]
[1740438095837,10.85247125,2509.7,2509.5,40.8]
[1740438096037,10.85247125,2509.8,2509.5,40.8]
[1740438096238,10.85247125,2509.8,2509.7,3.2078]
[1740438096544,0.00597383,2510.4,2509.7,14.27876162]
[1740438096740,3.2078,2510.8,2510.2,3.2078]
[1740438096947,3.2078,2511.6,2510.7,44.0078]
[1740438097139,10.85247125,2511.2,2510.9,3.2078]
[1740438097340,3.2078,2511.8,2510.9,3.2078]
[1740438097536,7.11394267,2512.1,2511.6,3.2078]
[1740438097734,7.11394267,2512.1,2511.0,5.22482772]
[1740438097735,3.2078,2512.6,2512.0,3.2078]
[1740438097944,10.85247125,2512.2,2512.1,3.2078]
[1740438098140,3.21377383,2512.5,2512.1,3.2078]
[1740438098336,10.85247125,2512.5,2512.2,40.8]
[1740438098541,3.2078,2513.0,2512.4,3.2078]
[1740438098741,10.85247125,2512.8,2512.4,3.2078]
[1740438098942,12.09951392,2513.0,2512.5,8.30559252]
[1740438099143,10.85247125,2512.5,2512.2,40.8]
[1740438099344,14.06624508,2512.3,2512.2,40.8]
[1740438099549,3.21377383,2512.3,2511.6,0.00597383]
[1740438099847,3.21377383,2512.3,2509.9,0.3984]
[1740438099848,3.21377383,2511.7,2511.3,3.2078]
[1740438100048,3.21377383,2511.4,2510.6,3.2078]
[1740438100251,3.21377383,2510.3,2510.2,5.07207238]
[1740438100445,3.2078,2510.8,2509.0,3.2078]
[1740438100644,3.2078,2509.8,2509.2,3.2078]
[1740438100850,3.21377383,2509.5,2509.2,3.2078]
[1740438101044,3.21377383,2509.7,2509.3,40.8]
[1740438101256,0.00597383,2509.8,2509.3,46.02240787]
[1740438101860,0.00597383,2509.8,2509.5,3.2078]
[1740438102259,3.21377383,2509.6,2509.5,3.2078]
[1740438102454,3.21377383,2509.6,2509.2,0.00597383]
[1740438102655,3.21377383,2509.5,2509.3,3.2078]
[1740438102859,0.43959874,2509.6,2509.2,3.21377383]
[1740438103259,1.14300585,2509.5,2509.3,5.19629605]
[1740438103451,3.21377383,2509.3,2508.0,3.2078]
[1740438103654,3.2078,2508.7,2507.5,3.2078]
[1740438103959,3.21377383,2507.6,2507.1,5.08030958]
[1740438104166,3.21377383,2507.8,2506.8,5.08030958]
[1740438104458,3.21377383,2507.6,2507.4,40.8]
[1740438104666,3.2078,2507.6,2507.4,40.8]
[1740438104853,0.00597383,2507.6,2507.4,40.8]
[1740438105059,0.00597383,2507.6,2507.5,5.09966805]
[1740438105259,3.2078,2509.0,2507.5,5.09966805]
[1740438105461,3.21377383,2508.9,2507.8,3.2078]
[1740438105759,0.45840705,2509.9,2507.2,22.098]
[1740438105760,3.21377383,2508.8,2508.1,3.2078]
[1740438105967,1.98289283,2508.8,2508.0,3.2078]
[1740438106267,1.98289283,2508.8,2508.7,40.8]
[1740438107064,1.98289283,2508.8,2508.7,51.92840554]
[1740438107460,1.98289283,2508.8,2508.7,45.92840554]
[1740438107657,8.40446666,2508.8,2508.7,40.8]
[1740438107959,8.40446666,2508.8,2508.1,0.00597383]
[1740438107960,8.28904282,2508.8,2508.1,0.00597383]
[1740438108160,3.21377383,2508.3,2508.1,0.00597383]
[1740438108359,3.21377383,2508.5,2508.1,0.00597383]
[1740438108557,3.21377383,2508.2,2507.6,3.2078]
[1740438108760,3.21377383,2507.9,2506.9,25.3088]
[1740438108959,1.3751483,2508.2,2506.9,25.3088]
[1740438109160,3.21377383,2507.9,2507.2,3.2078]
[1740438109468,1.98289283,2508.1,2507.8,40.8]
[1740438109862,1.98289283,2508.1,2507.9,5.30112462]
[1740438110171,1.3751483,2508.0,2507.9,5.30112462]
[1740438110359,4.58892213,2508.0,2507.3,0.00597383]
[1740438110557,1.3751483,2508.0,2507.0,3.2078]
[1740438110866,1.38112213,2507.9,2507.5,5.30112462]
[1740438111056,1.38112213,2507.9,2507.5,3.2078]
[1740438111259,1.38112213,2507.9,2507.8,40.8]
[1740438111462,0.60774453,2508.3,2507.8,40.8]
[1740438111757,0.60774453,2508.3,2508.2,3.2078]
[1740438111956,3.2078,2509.8,2508.2,3.2078]
[1740438112160,3.21377383,2509.2,2508.2,5.20080112]
[1740438112365,0.49256405,2509.1,2508.2,5.20080112]
[1740438112561,0.00597383,2509.0,2508.4,3.21377383]
[1740438112766,0.00597383,2509.0,2508.4,0.00597383]
[1740438112965,0.00597383,2509.0,2508.9,40.8]
[1740438113160,9.7076851,2509.0,2508.4,0.00597383]
[1740438113363,3.2078,2508.6,2507.3,3.2078]
[1740438113663,3.2078,2507.9,2506.6,3.2078]
[1740438113869,3.2078,2507.7,2506.7,3.2078]
[1740438114062,3.70171127,2507.6,2506.8,40.8]
[1740438114266,3.2078,2507.3,2506.8,40.8]
[1740438114463,3.2078,2507.3,2506.9,0.00597383]
[1740438114764,1.37126214,2507.2,2506.9,5.16815221]
[1740438115364,1.37126214,2507.2,2506.9,0.00597383]
[1740438115572,1.12220759,2507.1,2506.9,0.00597383]
[1740438116068,1.12220759,2507.1,2507.0,5.08170606]
[1740438116271,1.12220759,2507.1,2506.9,0.00597383]
[1740438116473,1.12220759,2507.1,2507.0,3.2078]
[1740438116678,1.12220759,2507.1,2506.9,0.00597383]
[1740438117063,1.12220759,2507.1,2507.0,3.2078]
[1740438117468,1.12220759,2507.1,2506.9,0.00597383]
[1740438117664,1.12220759,2507.1,2507.0,40.8]
[1740438117963,7.61381711,2507.1,2506.9,0.00597383]
[1740438118274,0.49131078,2507.0,2506.9,0.00427383]
[1740438118766,6.0,2507.0,2506.9,3.21207383]
[1740438118961,10.5792392,2507.0,2506.9,0.00427383]
[1740438119163,7.3714392,2507.0,2506.9,0.00427383]
[1740438119375,11.07028453,2507.0,2506.9,0.00427383]
[1740438119569,7.98116512,2507.0,2506.9,0.00427383]
[1740438120170,8.35354992,2507.0,2506.9,0.00427383]
[1740438120374,7.86239955,2507.0,2506.9,0.00427383]
[1740438120672,1.86239955,2507.0,2506.9,0.00427383]